{"text_format":"1","workbook":"xlsx","n_sheets":2,"sheets":["Baba kelengye költségvetés","Súlygyarapodásom"],"not_rendered":{"charts":1,"images":3,"macros":0,"external_links":0,"defined_names":1,"comments":0,"pivot_tables":0},"unopened":[],"bounds":{"document_bytes":16777216,"sheet_cells":100000,"rows_first":2000,"rows_last":500,"rows_between":2000,"halvings":0,"cell_chars":16384,"cell_head_chars":4096},"cells_cut":0,"cells_raw":0,"read":"whole","date_system":"1900"}

{"sheet":"Baba kelengye költségvetés","index":0,"n_rows":122,"n_cols":4,"rows_kept":122,"cut":false,"hidden":false,"merged":[[0,0,0,3],[3,1,3,2]]}
["Baba kelengyelista "]
[]
[]
["Kiadások összesen",{"$f":"(C25+C35+C43+C55+C61+C72+C84+C90+C98+C112+C122)","v":0}]
[]
[]
[null,"Tervezett darabszám","Becsült ár","Forrás (beszerzés helye)"]
["Ruhák"]
["Body(50-es, 56-os, 62-es)","4-6 db"]
["Rugdalózó (50-es, 56-os, 62-es)","4-6 db"]
["Hosszú ujjú body (50-es, 56-os, 62-es)","3-4 db"]
["Rövidujjú body (56-os, 62-es)","4-5 db"]
["Kocsikabát 56-62-es","1 db"]
["Kardigán, vékony pulcsik 56-62-es","2 db"]
["Nadrág, leggings","3 db"]
["Együttes","1 db"]
["Cérnasapka 1-es","2 db"]
["Vastagabb sapka","1 db"]
["Sál","2 db"]
["Zokni","4-6 pár"]
["Kocsicipő","1 pár"]
["Cérnakesztyű","1-2 pár"]
["Felső","2 db"]
["Overal","2 db"]
["Ruházat összesen",null,{"$f":"SUM(C9:C24)","v":0}]
[]
["Alvás"]
["Kiságy & Matrac","1 db"]
["Gumis lepedő","2 db"]
["Takaró vékonyabb","2 db"]
["Hálózsák (ujjatlan, oldalt zipzáros)","2 db"]
["Paplan vastagabb","1 db"]
["Fejvédő + oldalrácsra védők","1 db"]
["Babafészek","1 db"]
["Alvás összesen",null,{"$f":"SUM(C28:C34)","v":0}]
[]
["Fürdetés "]
["Fürdőkád/kádtámasz","1 db"]
["Babaszivacs","3 db"]
["Babafürdető (receptre, gyógyszertárból)","2 doboz"]
["Törülköző/Fürdőlepedő","3 db"]
["Vízhőmérő","1 db"]
["Fürdetés összesen",null,{"$f":"SUM(C38:C42)","v":0}]
[]
["Pelenkázás"]
["Pelenkázó szekrény & alátét & szekrénybe tartók","1 db"]
["Köldökápoló","1 szett"]
["Babatestápoló","2 db"]
["Pelenkázótáska utazós alátéttel","1 db"]
["Eldobható pelenka - újszülött méret","2-3 kis csomag"]
["Eldobható pelenka - 2-es méret","2-3 csomag"]
["Popsitörlő kendő","4-5 csomag"]
["Popsikenőcs (receptre, gyógyszertárból)","2 doboz"]
["Sudokrem & Bepanthen","1 db"]
["Pelenkázás összesen",null,{"$f":"SUM(C46:C54)","v":0}]
[]
["Közlekedés"]
["Babakocsi (mózes, sport, védők)","1 db"]
["Autóshordozó","1 db"]
["Tükör autóshordozóhoz","1 db"]
["Közlekedés összesen",null,{"$f":"SUM(C58:C60)","v":0}]
[]
["Szoptatáshoz"]
["Mellszívó","1 db"]
["Tejtároló zacskó vagy poharak","5-10 db"]
["Szoptatós melltartó","4 db"]
["Melltartó betét","1-2 csomag"]
["Bimbóvédő krém","1 db"]
["Szoptatós párna","1 db"]
["Anyatej tároló edények","2 db"]
["Szoptatós tea & more milk tabletta","1-1doboz"]
["Szoptatás összesen",null,{"$f":"SUM(C64:C71)","v":0}]
[]
["Babaápolás"]
["Szaliciles alkohol (receptre, gyógyszertárból)","1 adag"]
["Sebhintőpor (receptre, gyógyszertárból)","1 db"]
["Fültisztító pálcika","1 csomag"]
["Steril gézlap & vatta","1 csomag"]
["Hajkefe","1 db"]
["Körömvágó olló babáknak","1 db"]
["Orrszívó","1 db"]
["1-2 bébikanál vagy 2-5 ml fecskendő (vitaminoknak)","1 db"]
["Lázmérő","1 db"]
["Babaápolás összesen",null,{"$f":"SUM(C75:C83)","v":0}]
[]
["Gyógyszerek"]
["D vitamin ","1 csomag"]
["K vitamin (Konakion)","1 csomag"]
["lázkúp","1 csomag"]
["Gyógyszerek összesen",null,{"$f":"SUM(C87:C89)","v":0}]
[]
["Bababútorok"]
["Hinta","1 db"]
["Baba pihenő szék","1 db"]
["Játszószönyeg","1 db"]
["Szennyestartó","1 db"]
["Szemetes pelenkáknak","1 db"]
["Bababútorok összesen",null,{"$f":"SUM(C93:C97)","v":0}]
[]
["Kiegészítők"]
["Falra dekoráció","2 db"]
["Vastag takaró sétához","1 db"]
["Textilpelenka ","10-20 db"]
["Éjjelifény ","1 db"]
["Mérleg","1 db"]
["Cumi","2 db"]
["Játéktartó","2 db"]
["Légzésfigyelő","1 db"]
["Párásító készülék (száraz levegőjű lakásba)","1 db"]
["Rágóka kendő","1 db"]
["Sensitive mosószer","1 db"]
["Kiegészítők összesen",null,{"$f":"SUM(C101:C111)","v":0}]
[]
["Egyéb"]
["Hordozókendő vagy kenguru","1 db"]
["Utazóágy +matrac ","1 db"]
["Cumisüveg","3 db"]
["Cumisüvegmosó","1 db"]
["Cumisüveg sterilizáló","1 db"]
["Napellenző az autóba","1 db"]
["Egyéb________________"]
["Egyéb összesen",null,{"$f":"SUM(C115:C121)","v":0}]

{"sheet":"Súlygyarapodásom","index":1,"n_rows":41,"n_cols":6,"rows_kept":41,"cut":false,"hidden":false,"merged":[[0,0,0,18],[2,2,2,3]]}
["Súlygyarapodásom "]
[]
[null,null,"Eddigi összes súlygyarapodásom:",null,{"$f":"SUM(D7:D41)","v":17.5},"kg"]
[]
[null,"Hetek ","Súlyom (kg)","Változás az előző héthez képest (kg)"]
[null,5,55]
[null,6,55.5,{"$f":"C7-C6","v":0.5}]
[null,7,56,{"$f":"C8-C7","v":0.5}]
[null,8,56.5,0.5]
[null,9,57,0.5]
[null,10,57.5,0.5]
[null,11,58,0.5]
[null,12,58.5,0.5]
[null,13,59,0.5]
[null,14,59.5,0.5]
[null,15,60,0.5]
[null,16,60.5,0.5]
[null,17,61,0.5]
[null,18,61.5,0.5]
[null,19,62,0.5]
[null,20,62.5,0.5]
[null,21,63,0.5]
[null,22,63.5,0.5]
[null,23,64,0.5]
[null,24,64.5,0.5]
[null,25,65,0.5]
[null,26,65.5,0.5]
[null,27,66,0.5]
[null,28,66.5,0.5]
[null,29,67,0.5]
[null,30,67.5,0.5]
[null,31,68,0.5]
[null,32,68.5,0.5]
[null,33,69,0.5]
[null,34,69.5,0.5]
[null,35,70,0.5]
[null,36,70.5,0.5]
[null,37,71,0.5]
[null,38,71.5,0.5]
[null,39,72,0.5]
[null,40,72.5,0.5]